Cogmind - Beta 17 @@@ ROGUE MODE // 2026.06.27 @ 19:48:15 Player: mintimati Result: Destroyed by S-10 Pest with Light Assault Rifle Performance ------------- Evolutions (0) 0 Regions Visited (2) 400 Robots Destroyed (17) 85 Value Destroyed (228) 228 Prototype IDs (1) 20 Alien Tech Used (0) 0 Bonus (5450) 5450 TOTAL SCORE: 6183 Bonus ------- Prayed to X0-1V1 5000 Major X0-1V1 Interference 450 Cogmind --------- Core Integrity 0/150 Matter 265/300 Energy 325/325 System Corruption 8% Temperature Cool (0) Movement Rolling (100) Location -10/Mines Parts ------- > --- POWER (1) -------- Light Ion Engine > --- PROPULSION (2) --- Compact Wheel > --- UTILITY (3) ------ Small Storage Unit Improved Terrain Scanner X0-1V1's Piety Tracker > --- WEAPON (1) ------- EM Pulse Gun > --- INVENTORY (8) ---- Structural Scanner Signal Interpreter Utility Shielding Beam Cannon Datajack Mining Laser Peak State ------------ > --- POWER ------------ Light Ion Engine > --- PROPULSION ------- Wheel Compact Wheel > --- UTILITY ---------- Small Storage Unit Improved Terrain Scanner X0-1V1's Piety Tracker > --- WEAPON ----------- EM Pulse Gun > --- INVENTORY -------- Flight Unit Structural Scanner Signal Interpreter Utility Shielding Beam Cannon Mining Laser [Rating: 21] Favorites ----------- Power Light Ion Engine Engine Light Ion Engine Propulsion Light Treads Treads Light Treads Wheel Compact Wheel Utility Small Storage Unit Device X0-1V1's Piety Tracker Storage Small Storage Unit Weapon Light Assault Rifle Energy Gun EM Pulse Gun Energy Cannon Beam Cannon Ballistic Gun Light Assault Rifle Build | -11 -10 -10 ------- Run | Yrd Mat Min Slots Evolved . | . . . Power . | . . . Propulsion . | . . . Utility . | . . . Weapon . | . . . Parts Attached 13 | 7 4 2 Power 2 | 1 1 . Engine 2 | 1 1 . Core . | . . . Reactor . | . . . Propulsion 5 | 2 1 2 Treads 2 | 2 . . Leg . | . . . Wheel 3 | . 1 2 Hover . | . . . Flight . | . . . Utility 3 | 2 1 . Device 2 | 1 1 . Storage 1 | 1 . . Processor . | . . . Hackware . | . . . Protection . | . . . Artifact . | . . . Weapon 3 | 2 1 . Energy Gun 1 | 1 . . Energy Cannon 1 | . 1 . Ballistic Gun 1 | 1 . . Ballistic Cannon . | . . . Launcher . | . . . Special Weapon . | . . . Impact Weapon . | . . . Slashing Weapon . | . . . Piercing Weapon . | . . . Special Melee Weapon . | . . . Unidentified Prototypes 1 | . 1 . Parts Lost 2 | . 1 1 Power 1 | . 1 . Propulsion 1 | . . 1 Utility . | . . . Weapon . | . . . Highest Loss Streak 1 | . 1 1 To Critical Strikes . | . . . Average Backups 4 | . 5 5 Power . | . . . Propulsion . | . . . Utility 1 | . 2 2 Weapon 2 | . 2 2 Tool/Special . | . . . Unused Backups 7 | . 1 6 Power . | . . . Propulsion 1 | . . 1 Utility 3 | . . 3 Weapon 2 | . 1 1 Tool/Special 1 | . . 1 Average Slot Usage (%) 91 | . 90 95 Engine 13 | . 13 14 Treads 18 | . 22 . Wheel 4 | . 1 24 Device 16 | . 13 27 Storage 14 | . 14 14 Energy Gun 3 | . 1 13 Energy Cannon 10 | . 12 . Ballistic Gun 8 | . 10 . Peak Build Rating 21 | 9 19 21 Average Rating 14 | 6 16 20 On Entrance 8 | . 9 17 Avg Prop Armor Cover (%) 17 | . 17 . Naked Turns . | . . . Heaviest Build 15 | 12 15 12 Greatest Support 40 | 40 40 32 Greatest Overweight (x) 4 | . 4 1 Average Overweight (x) . | . . . Largest Inventory Capacity 8 | 8 8 8 Average Capacity 7 | 7 8 8 Most Carried 8 | 4 8 7 Average Carried 4 | . 5 5 Final Capacity 8 | 8 8 8 Final Carried 6 | 2 5 6 Class Distribution -------------------- 100% | Mutant Dominant Class ---------------- Mutant | -10/Materials Mutant | -10/Mines Resources | -11 -10 -10 ----------- Run | Yrd Mat Min Matter Collected 604 | 289 197 118 Remotely . | . . . Salvage Created 457 | 247 197 13 Parts 26 | 14 12 . Haulers Intercepted . | . . . Recyclers Shooed . | . . . Parts Field Recycled . | . . . Retrieved Matter . | . . . Parts Self-Destructed . | . . . Prevented . | . . . Parts Restored . | . . . Kills | -11 -10 -10 ------- Run | Yrd Mat Min Combat Hostiles Destroyed 4 | . 3 1 Melee 1 | . 1 . Guns 1 | . . 1 Cannons 2 | . 2 . Classes Destroyed 8 | 3 4 1 Worker 2 | 2 . . Builder 1 | . 1 . Tunneler 6 | 6 . . Recycler 1 | 1 . . Operator 1 | . 1 . Watcher 2 | . 2 . Swarmer 1 | . . 1 Grunt 3 | . 3 . Best Kill Streak 3 | 3 2 1 Combat Bots Only 1 | . 1 1 Max Kills in Single Turn 1 | 1 1 1 Gunslinging . | . . . Exploded . | . . . Melee 1 | . 1 . Uniques/NPCs Destroyed . | . . . Combat | -11 -10 -10 -------- Run | Yrd Mat Min Hostile Shots Fired 59 | . 33 26 Missed 14 | . 7 7 Hits 45 | . 26 19 Projectile 45 | . 26 19 Damage Taken 542 | 29 365 148 Core 151 | . 100 51 Absorbed by Shields . | . . . Core Remaining (%) 100 | 100 . . Volleys Fired 49 | 19 24 6 Largest 2 | 2 2 1 Hottest 80 | 60 80 40 Shots Fired 93 | 38 48 7 Gun 70 | 38 25 7 Cannon 23 | . 23 . Launcher . | . . . Special . | . . . Kinetic 43 | 19 24 . Thermal 23 | . 23 . Explosive . | . . . Electromagnetic 27 | 19 1 7 Robot Hit Streak 9 | 9 5 6 Robot Miss Streak 6 | 4 6 5 Penetration Max . | . . . Secondary Targets . | . . . Shots Hit Robots 44 | 21 22 1 Core Hits 24 | 12 11 1 Critical Kills . | . . . Critical Parts Destroyed . | . . . Critical Strikes 1 | 1 . . Corrupt 1 | 1 . . Melee Attacks . | . . . Impact . | . . . Slashing . | . . . Piercing . | . . . Sneak Attacks . | . . . Combat Hostiles . | . . . Follow-up Attacks . | . . . Damage Inflicted 591 | 281 299 11 Guns 355 | 247 97 11 Cannons 193 | . 193 . Explosions 34 | 34 . . Melee . | . . . Ramming 9 | . 9 . Kinetic 172 | 75 97 . Thermal 227 | 34 193 . Explosive . | . . . Electromagnetic 183 | 172 . 11 Impact . | . . . Slashing . | . . . Piercing . | . . . Highest Corruption 8 | . 8 8 Average Corruption 8 | . 8 8 Corruption Purged . | . . . Corruption Blocked . | . . . Effects 32 | . 27 5 Message Errors 11 | . 9 2 Matter Fused 8 | . 7 1 Heat Flow Errors 3 | . 2 1 Energy Discharges 1 | . 1 . Parts Rejected 2 | . 2 . Data Loss (minor) 7 | . 6 1 Overload Shots . | . . . Overflow Damage 4 | 4 . . Projectiles . | . . . Explosions 4 | 4 . . Melee . | . . . Knockbacks . | . . . Impact . | . . . Kinetic . | . . . Secondary . | . . . Self-Inflicted Damage 30 | 29 1 . Shots 1 | 1 . . Rammed 8 | . 8 . Targets Rammed 8 | . 8 . Kicked . | . . . Crushed . | . . . Highest Temperature 549 | 40 549 274 Average Temperature 167 | 18 208 152 Received Heat Transfer 201 | . 189 12 Effects 18 | . 18 . Shutdowns 3 | . 3 . Energy Bleed 2 | . 2 . Matter Decay 3 | . 3 . Short Circuit 3 | . 3 . Damage (minor) 2 | . 2 . Damage (major) 4 | . 4 . Damage (core) 1 | . 1 . Siege Activations . | . . . Martial Activations . | . . . Shielding Activations . | . . . Robots Disrupted . | . . . Combat Hostiles . | . . . Robots Corrupted . | . . . Combat Hostiles . | . . . Parts Fried . | . . . Impact Corruptions . | . . . Robots Melted 1 | . 1 . Combat Hostiles . | . . . Parts Melted 1 | . 1 . Heat Transferred 457 | 50 407 . Parts Sabotaged . | . . . Parts Stolen . | . . . Parts Stripped . | . . . Power Chain Reactions 1 | 1 . . Alert | -11 -10 -10 ------- Run | Yrd Mat Min Maximum Alert Level 1 | . 1 . Low Security (%) 93 | 100 90 100 Level 1 6 | . 9 . Level 2 . | . . . Level 3 . | . . . Level 4 . | . . . Level 5 . | . . . High Security . | . . . Max Security . | . . . Peak Influence 234 | 10 234 65 Initial 33 | . . 33 Average 59 | . 90 14 Influence Increases 511 | 45 371 95 Destroy 0b10 Robot/C 80 | . 60 20 Destroy 0b10 Robot/NC 65 | 45 20 . Destroy Leader 24 | . 24 . Successful Hack 3 | . 3 . Lose Combat Pursuer 105 | . 30 75 Miscellaneous 234 | . 234 . Influence Decreases 446 | 45 285 116 Entered New Map 53 | . . 53 Time Decay 373 | 45 275 53 Lost Part 20 | . 10 10 Squads Dispatched 1 | . 1 . Investigation . | . . . Extermination . | . . . Reinforcement 1 | . 1 . Assault . | . . . Garrison . | . . . Intercept . | . . . Searches Triggered . | . . . Construction Impeded . | . . . Haulers Reinforced . | . . . Active Scanning Responses . | . . . Cargo Convoy Interrupts . | . . . Stealth | -11 -10 -10 --------- Run | Yrd Mat Min Distress Signals . | . . . Communications Jammed . | . . . Distress Signals . | . . . Times Spotted 17 | . 9 8 Peak Tracking Total 6 | . 2 6 Tactical Retreats 3 | . 1 2 Traps | -11 -10 -10 ------- Run | Yrd Mat Min Traps Triggered . | . . . Indirectly . | . . . Trap Hack Attempts . | . . . Triggered . | . . . Disarmed . | . . . Reprogrammed . | . . . Reused . | . . . Traps Extracted . | . . . Installed . | . . . Triggered . | . . . Machines | -11 -10 -10 ---------- Run | Yrd Mat Min Machines Disabled . | . . . Max in Single Turn . | . . . Machines Repaired . | . . . Machines Dismantled . | . . . Machines Sabotaged . | . . . Overloaded Fab Kills . | . . . Hacking | -11 -10 -10 --------- Run | Yrd Mat Min Machines Accessed 2 | . 2 . Terminals 2 | . 2 . Fabricators . | . . . Repair Stations . | . . . Recycling Units . | . . . Scanalyzers . | . . . Garrison Access . | . . . Total Hacks 2 | . 2 . Successful 2 | . 2 . Failed . | . . . Catastrophic . | . . . Database Lockouts . | . . . Manual 5 | . 5 . Terminals 2 | . 2 . Fabricators . | . . . Repair Stations . | . . . Recycling Units . | . . . Scanalyzers . | . . . Garrison Access . | . . . Terminal Hacks . | . . . Fabricator Hacks . | . . . Repair Station Hacks . | . . . Recycling Unit Hacks . | . . . Scanalyzer . | . . . Garrison Access Hacks . | . . . Unauthorized Hacks 2 | . 2 . Terminals 2 | . 2 . Track 1 | . 1 . Botnet 1 | . 1 . Fabricators . | . . . Repair Stations . | . . . Recycling Units . | . . . Scanalyzers . | . . . Garrison Access . | . . . Data Cores Recovered . | . . . Used . | . . . Hacking Detections 1 | . 1 . Full Trace Events . | . . . Feedback Events . | . . . Feedback Blocked . | . . . Robot Schematics Acquired . | . . . Robots Built . | . . . Authchips . | . . . Time . | . . . Total Robot Build Rating . | . . . Part Schematics Acquired . | . . . Parts Built . | . . . Authchips . | . . . Time . | . . . Total Part Build Rating . | . . . Part Studies Acquired . | . . . Parts Repaired . | . . . Time . | . . . Parts Recycled . | . . . Recycled Matter . | . . . Retrieved Matter . | . . . Retrieved Components . | . . . Parts Scanalyzed . | . . . Part Schematics Acquired . | . . . Parts Damaged . | . . . Bothacking | -11 -10 -10 ------------ Run | Yrd Mat Min Used RIF Installer . | . . . Robots Hacked . | . . . Non-combat . | . . . Combat . | . . . Robot Hacks Applied . | . . . Relay Couplers Released . | . . . Fabnet Peak Effective % . | . . . Robots Rewired . | . . . Allies Hacked . | . . . Hacks Repelled . | . . . Allies | -11 -10 -10 -------- Run | Yrd Mat Min Total Allies . | . . . Largest Group . | . . . Highest-Rated Group . | . . . Highest-Rated Ally . | . . . Total Orders . | . . . Ally Attacks . | . . . Total Damage . | . . . Kills . | . . . Allies Corrupted . | . . . Allies Melted . | . . . X0-1V1 Amusement Gains 17 | . 17 . Good Acts 2 | . 2 . Bad Acts 7 | . 4 3 Intel | -11 -10 -10 ------- Run | Yrd Mat Min Active Infowar (turns) 507 | 129 165 213 Terrain 507 | 129 165 213 Robot Analysis Total . | . . . Derelict Logs Recovered . | . . . Drone Launches . | . . . Drone Recoveries . | . . . Exploration | -11 -10 -10 ------------- Run | Yrd Mat Min Turns Passed 1757 | 423 1119 215 Spaces Moved 924 | 229 519 176 Core 127 | 19 108 . Treads 532 | 210 322 . Legs . | . . . Wheels 265 | . 89 176 Hover . | . . . Flight . | . . . Fastest Speed 50 | 50 80 90 Average Speed 150 | 150 167 99 Slowest Speed 250 | 160 250 100 Overloaded Moves . | . . . Propulsion Burnouts . | . . . Robots Hopped . | . . . Potential Cave-ins . | . . . Cave-ins Triggered . | . . . Exploration Rate (%) 32 | 8 39 49 Regions Visited 2 Branch Regions 1 Pre-discovered Areas . | . . . Known Exits Taken . | . . . Unknown Exits Taken 2 | 1 1 . Scrap Searched 1 | . . 1 Spaces Dug . | . . . Terrain Destroyed 4 | 4 . . Melee . | . . . Projectile . | . . . AOE 4 | 4 . . Terrain Rammed . | . . . Walls Destroyed . | . . . Machines Disabled . | . . . Actions | -11 -10 -10 --------- Run | Yrd Mat Min Total 1206 | 272 722 212 Wait 181 | 9 155 17 Move 922 | 228 518 176 Hop . | . . . Pick Up 20 | 9 6 5 Fast Attach . | . . . Attach 16 | 7 5 4 Detach 6 | . 4 2 Swap . | . . . Drop 4 | . 2 2 Fire 49 | 19 24 6 Melee . | . . . Ram 1 | . 1 . Kick . | . . . Crush 7 | . 7 . Escape Stasis . | . . . Rewire . | . . . Trap . | . . . Miscellaneous . | . . . Route ------- -11/Scrapyard -10/Materials -10/Mines (discovered 1 exit: [*Mat]) History --------- Turn | Location | Event 2 | -11/Scrapyard | Met Revision 17 4 | -11/Scrapyard | Discovered new exit (range 16) 424 | -11/Scrapyard | Entered Materials 425 | -10/Materials | Build established: Mutant 574 | -10/Materials | Prayed at D.C.S.S. Altar Unit 642 | -10/Materials | Energy capacity permanently improved by X0-1V1 (+200; -100 max core) 847 | -10/Materials | X0-1V1 foreshadows a heat wave 857 | -10/Materials | X0-1V1 added 0b10 threat records associated with you (major) 895 | -10/Materials | Discovered new exit (range 12) 994 | -10/Materials | Ambient heat levels rising (+10) 1241 | -10/Materials | Ambient heat levels rising (+10) 1480 | -10/Materials | Core integrity fell below 50% 1486 | -10/Materials | Ambient heat levels falling (-10) 1533 | -10/Materials | X0-1V1 mutated your Weapon slot to Utility slot 1543 | -10/Materials | Entered Mines 1573 | -10/Mines | Found DCF Scrap (13 items) 1685 | -10/Mines | X0-1V1 sent hostile G-34 Mercenary (x5) 1744 | -10/Mines | Discovered new exit (range 12) 1749 | -10/Mines | Core integrity fell below 20% 1758 | -10/Mines | Destroyed by S-10 Pest with Light Assault Rifle Last Messages --------------- 01590_ Dropped Flight Unit. 01599_ Acquired Datajack. 01614_ System corrupted: Heat flow error (+274). 01614_ X0-1V1: "I had everything to do with that." 01642_ System corrupted: Component data lost. 01664_ X0-1V1: "Use it or lose it, I always say." 01664_ Com. Wheel fused. 01679_ UUH|BW:NY8 01685_ X0-1V1: "C'mon, do something!" G-34 Mercenary form resolidifies at new position. 01699_ K-01 Serf collects debris. 01704_ System corrupted: Matter fused (-7). 01735_ S-10 Pest destroyed. 01744_ EXIT=FOUND 01750_ Com. Wheel destroyed. 01754_ 3R=YLOI<6Y0